fUST/lending_fUST_20250924
["ID","MTS","AMOUNT","RATE_DAILY","PERIOD"]
[387333314,1758695440304,-480.0,0.00019346,2]
[387333315,1758695440314,-336.24568989,0.00019346,2]
[387333316,1758695440366,-143.75431011,0.00019346,2]
[387333317,1758695440379,-480.0,0.00019346,2]
[387333318,1758695440389,-480.0,0.00019346,2]
[387333319,1758695440398,-480.0,0.00019346,2]
[387333320,1758695440407,-480.0,0.00019346,2]
[387333321,1758695440416,-480.0,0.00019346,2]
[387333322,1758695440429,-157.29570846,0.00019346,2]
[387333323,1758695440443,-322.70429154,0.00019346,2]
[387333324,1758695440457,-480.0,0.00019346,2]
[387333325,1758695440467,-231.34570846,0.00019346,2]
[387334034,1758695446194,-248.65429154,0.00019346,2]
[387334037,1758695446204,-480.0,0.00019347,2]
[387334041,1758695446214,-480.0,0.00019347,2]
[387334044,1758695446223,-480.0,0.00019347,2]
[387334047,1758695446233,-480.0,0.00019349,2]
[387334050,1758695446243,-321.42256434,0.00019352,2]
[387334052,1758695446252,-500.0,0.00019373,2]
[387334055,1758695446261,-500.0,0.00019373,2]
[387334058,1758695446270,-500.0,0.00019373,2]
[387334061,1758695446279,-500.0,0.00019373,2]
[387334064,1758695446288,-49.92314412,0.00019534,3]
[387334067,1758695446299,-105.73413202,0.00019534,3]
[387334070,1758695446309,-261.32513931,0.00019562,2]
[387334073,1758695446318,-817.52,0.00019608,3]
[387334076,1758695446327,-475.31043285,0.00019617,2]
[387334078,1758695446337,-853.27,0.00019617,2]
[387334081,1758695446346,-480.0,0.00019617,2]
[387334083,1758695446355,-480.0,0.00019617,2]
[387334085,1758695446364,-480.0,0.00019617,2]
[387334089,1758695446373,-480.0,0.00019617,2]
[387334092,1758695446382,-506.63791978,0.00019617,2]
[387334097,1758695446398,-65.88858913,0.00019617,2]
[387334101,1758695446408,-185.05425725,0.00019617,2]
[387334106,1758695446419,-294.94574275,0.00019617,2]
[387334109,1758695446428,-146.66227735,0.00019617,2]
[387334112,1758695446439,-333.33772265,0.00019617,2]
[387334115,1758695446448,-480.0,0.00019617,2]
[387334118,1758695446457,-480.0,0.00019617,2]
[387334121,1758695446467,-480.0,0.00019617,2]
[387334124,1758695446476,-480.0,0.00019617,2]
[387334127,1758695446485,-46.66227735,0.00019617,2]
[387334130,1758695446498,-433.33772265,0.00019617,2]
[387334133,1758695446507,-847.47,0.00019617,2]
[387334136,1758695446516,-480.0,0.00019617,2]
[387334139,1758695446526,-385.1749115,0.00019617,2]
[387334142,1758695446535,-480.0,0.00019617,2]
[387334144,1758695446545,-480.0,0.00019617,2]
[387334146,1758695446554,-480.0,0.00019617,2]
[387334149,1758695446564,-480.0,0.00019618,2]
[387334151,1758695446573,-448.31845646,0.00019618,2]
[387334154,1758695446583,-493.12951659,0.00019618,2]
[387334157,1758695446592,-480.0,0.00019618,2]
[387334160,1758695446601,-480.0,0.00019618,2]
[387334163,1758695446610,-322.92039274,0.00019618,2]
[387336245,1758695725086,237366.08751305,0.00029296,60]
[387336745,1758696638354,-265.36,0.000191,2]
[387336746,1758696638363,-524.06518915,0.00019178,2]
[387336747,1758696638372,-177.6423019,0.0001924,2]
[387336748,1758696638382,-664.57525088,0.00019243,2]
[387336749,1758696638392,-300.0,0.00019332,2]
[387336750,1758696638402,-300.0,0.00019332,2]
[387336751,1758696638411,-300.0,0.00019332,2]
[387336752,1758696638421,-899.21606401,0.00019332,2]
[387336753,1758696638432,-300.78393599,0.00019332,2]
[387336754,1758696638442,-270.03876602,0.00019333,3]
[387336755,1758696638454,-534.08123398,0.00019333,3]
[387336756,1758696638463,-402.06,0.00019333,3]
[387336757,1758696638473,-201.03,0.00019333,3]
[387336758,1758696638482,-603.13,0.00019333,3]
[387336759,1758696638492,-310.0,0.00019338,2]
[387336760,1758696638501,-480.0,0.00019339,2]
[387336761,1758696638511,-480.71377818,0.00019339,2]
[387336763,1758696638520,-112.09576892,0.00019339,2]
[387336764,1758696638532,-367.90423108,0.00019339,2]
[387336765,1758696638541,-480.0,0.0001934,2]
[387336766,1758696638551,-480.0,0.0001934,2]
[387336767,1758696638560,-228.14480747,0.0001934,2]
[387336769,1758696638570,-9403.31209048,0.0001934,2]
[387336770,1758696638582,-17155.67264337,0.0001934,2]
[387336771,1758696638592,-500.0,0.0001934,2]
[387336772,1758696638601,-484.64955273,0.0001934,2]
[387336773,1758696638611,-500.0,0.0001934,2]
[387336774,1758696638620,-500.0,0.0001934,2]
[387336775,1758696638631,-415.42073092,0.0001934,2]
[387336776,1758696638641,-500.0,0.0001934,2]
[387336777,1758696638650,-500.0,0.0001934,2]
[387336778,1758696638660,-500.0,0.0001934,2]
[387336779,1758696638670,-500.0,0.0001934,2]
[387336780,1758696638679,-480.0,0.0001934,2]
[387336781,1758696638690,-480.0,0.0001934,2]
[387336782,1758696638699,-480.0,0.0001934,2]
[387336783,1758696638709,-480.0,0.0001934,2]
[387336784,1758696638719,-480.0,0.0001934,2]
[387336785,1758696638728,-480.0,0.0001934,2]
[387336786,1758696638738,-484.05825678,0.0001934,2]
[387336787,1758696638747,-480.0,0.0001934,2]
[387336788,1758696638756,-480.0,0.0001934,2]
[387336789,1758696638765,-480.0,0.0001934,2]
[387336790,1758696638775,-481.27781761,0.0001934,2]
[387336791,1758696638784,-480.0,0.00019341,2]
[387336792,1758696638795,-480.0,0.00019341,2]
[387336793,1758696638804,-480.0,0.00019341,2]
[387336794,1758696638814,-295.1825244,0.00019341,2]
[387336795,1758696638824,-480.0,0.00019341,2]
[387336796,1758696638834,-480.0,0.00019341,2]
[387336797,1758696638843,-480.0,0.00019341,2]
[387336798,1758696638853,-480.0,0.00019341,2]
[387336799,1758696638863,-480.0,0.00019341,2]
[387336800,1758696638872,-480.0,0.00019341,2]
[387336801,1758696638881,-480.0,0.00019341,2]
[387336802,1758696638891,-484.83743813,0.00019341,2]
[387336803,1758696638900,-480.0,0.00019341,2]
[387336804,1758696638910,-481.70457678,0.00019341,2]
[387336805,1758696638919,-480.0,0.00019341,2]
[387336806,1758696638929,-480.0,0.00019341,2]
[387336807,1758696638940,-480.0,0.00019341,2]
[387336808,1758696638949,-481.60648271,0.00019341,2]
[387336809,1758696638958,-480.0,0.00019341,2]
[387336810,1758696638968,-394.31363014,0.00019341,2]
[387336811,1758696638978,-480.87566654,0.00019341,2]
[387336812,1758696638987,-481.1484857,0.00019341,2]
[387336813,1758696638997,-480.0,0.00019341,2]
[387336814,1758696639006,-500.72859306,0.00019341,2]
[387336815,1758696639015,-480.0,0.00019341,2]
[387336816,1758696639025,-485.2415855,0.00019341,2]
[387336817,1758696639034,-2742.89,0.00019341,2]
[387336818,1758696639044,-480.0,0.00019341,2]
[387336819,1758696639053,-480.0,0.00019341,2]
[387336820,1758696639062,-480.0,0.00019341,2]
[387336821,1758696639072,-480.0,0.00019341,2]
[387336822,1758696639081,-480.0,0.00019341,2]
[387336823,1758696639090,-480.0,0.00019341,2]
[387336824,1758696639100,-485.79895417,0.00019341,2]
[387336825,1758696639109,-288.30418576,0.00019341,2]
[387336826,1758696639118,-480.0,0.00019341,2]
[387336827,1758696639128,-424.26812207,0.00019341,2]
[387336828,1758696639138,-480.0,0.00019341,2]
[387336829,1758696639147,-480.0,0.00019341,2]
[387336830,1758696639157,-482.66244457,0.00019341,2]
[387336831,1758696639167,-480.0,0.00019341,2]
[387336832,1758696639177,-480.0,0.00019341,2]
[387336833,1758696639187,-480.0,0.00019341,2]
[387336834,1758696639197,-537.66,0.00019341,2]
[387336835,1758696639209,-480.0,0.00019341,2]
[387336836,1758696639218,-842.14,0.00019341,2]
[387336837,1758696639230,-480.0,0.00019341,2]
[387336838,1758696639239,-482.54852348,0.00019341,2]
[387336839,1758696639249,-480.0,0.00019341,2]
[387336840,1758696639259,-407.50575733,0.00019341,2]
[387336841,1758696639271,-72.49424267,0.00019341,2]
[387336842,1758696639281,-308.37006625,0.00019341,2]
[387336843,1758696639290,-480.0,0.00019341,2]
[387336844,1758696639301,-480.0,0.00019341,2]
[387336845,1758696639310,-480.25986635,0.00019341,2]
[387336846,1758696639319,-486.47611201,0.00019341,2]
[387336847,1758696639329,-480.0,0.00019341,2]
[387336848,1758696639338,-480.0,0.00019341,2]
[387336849,1758696639348,-480.0,0.00019341,2]
[387336850,1758696639357,-480.0,0.00019341,2]
[387336851,1758696639367,-480.0,0.00019341,2]
[387336852,1758696639376,-483.84438653,0.00019341,2]
[387336853,1758696639387,-480.0,0.00019341,2]
[387336854,1758696639397,-482.44897884,0.00019341,2]
[387336855,1758696639407,-480.0,0.00019341,2]
[387336856,1758696639416,-534.48223388,0.00019341,2]
[387336857,1758696639425,-483.1599813,0.00019341,2]
[387336858,1758696639435,-480.0,0.00019341,2]
[387336859,1758696639445,-433.29630317,0.00019341,2]
[387336860,1758696639456,-49.36821158,0.00019341,2]
[387336861,1758696639465,-482.38821703,0.00019341,2]
[387336862,1758696639474,-480.0,0.00019341,2]
[387336863,1758696639484,-480.0,0.00019341,2]
[387336864,1758696639493,-480.0,0.00019341,2]
[387336865,1758696639503,-480.0,0.00019341,2]
[387336866,1758696639512,-480.0,0.00019341,2]
[387336867,1758696639522,-480.0,0.00019341,2]
[387336868,1758696639531,-480.0,0.00019341,2]
[387336869,1758696639541,-480.0,0.00019341,2]
[387336870,1758696639550,-480.0,0.00019341,2]
[387336871,1758696639559,-480.0,0.00019341,2]
[387336872,1758696639568,-480.0,0.00019341,2]
[387336873,1758696639577,-1655.49,0.00019341,2]
[387336874,1758696639587,-480.0,0.00019341,2]
[387336875,1758696639596,-480.0,0.00019341,2]
[387336876,1758696639606,-480.0,0.00019341,2]
[387336877,1758696639616,-325.52177593,0.00019341,2]
[387336878,1758696639626,-200.27663366,0.00019341,2]
[387336879,1758696639637,-500.0,0.00019341,2]
[387336880,1758696639647,-500.0,0.00019341,2]
[387336881,1758696639656,-500.0,0.00019341,2]
[387336882,1758696639665,-500.0,0.00019341,2]
[387336883,1758696639675,-500.0,0.00019341,2]
[387336884,1758696639685,-500.0,0.00019341,2]
[387336885,1758696639694,-500.0,0.00019341,2]
[387336886,1758696639704,-500.0,0.00019341,2]
[387336887,1758696639714,-500.0,0.00019341,2]
[387336888,1758696639732,-500.0,0.00019341,2]
[387336889,1758696639742,-500.0,0.00019341,2]
[387336890,1758696639752,-458.1522169,0.00019341,2]
[387336891,1758696639762,-763.47,0.00019341,2]
[387336892,1758696639771,-500.0,0.00019342,2]
[387336893,1758696639783,-480.0,0.00019342,2]
[387336894,1758696639793,-480.0,0.00019342,2]
[387336896,1758696639803,-390.43982148,0.00019342,2]
[387336898,1758696639813,-480.0,0.00019342,2]
[387336899,1758696639822,-480.0,0.00019342,2]
[387336900,1758696639832,-480.0,0.00019342,2]
[387336901,1758696639842,-481.85333816,0.00019342,2]
[387336902,1758696639853,-480.0,0.00019342,2]
[387336903,1758696639863,-480.0,0.00019342,2]
[387336904,1758696639873,-480.0,0.00019342,2]
[387336905,1758696639882,-480.0,0.00019342,2]
[387336906,1758696639892,-480.0,0.00019342,2]
[387336907,1758696639901,-480.0,0.00019342,2]
[387336908,1758696639911,-480.0,0.00019342,2]
[387336909,1758696639921,-553.3194877,0.00019342,2]
[387336910,1758696639931,-480.0,0.00019342,2]
[387336911,1758696639940,-480.0,0.00019342,2]
[387336912,1758696639950,-480.0,0.00019342,2]
[387336913,1758696639959,-480.0,0.00019342,2]
[387336914,1758696639969,-1257.41,0.00019342,2]
[387336915,1758696639980,-480.0,0.00019342,2]
[387336916,1758696639989,-480.0,0.00019342,2]
[387336917,1758696639999,-480.0,0.00019342,2]
[387336918,1758696640008,-509.9,0.00019342,2]
[387336919,1758696640018,-480.0,0.00019342,2]
[387336920,1758696640028,-460.29082379,0.00019342,2]
[387336921,1758696640037,-485.41005348,0.00019342,2]
[387336922,1758696640046,-480.0,0.00019342,2]
[387336923,1758696640056,-480.0,0.00019342,2]
[387336924,1758696640066,-480.0,0.00019342,2]
[387336925,1758696640075,-480.0,0.00019342,2]
[387336926,1758696640085,-480.0,0.00019342,2]
[387336927,1758696640095,-542.57,0.00019342,2]
[387336928,1758696640104,-480.0,0.00019342,2]
[387336929,1758696640114,-481.76061272,0.00019342,2]
[387336930,1758696640123,-480.0,0.00019342,2]
[387336931,1758696640133,-480.0,0.00019342,2]
[387336932,1758696640143,-480.0,0.00019342,2]
[387336933,1758696640152,-480.0,0.00019342,2]
[387336934,1758696640162,-480.0,0.00019342,2]
[387336935,1758696640171,-480.0,0.00019342,2]
[387336936,1758696640180,-480.0,0.00019342,2]
[387336937,1758696640190,-480.0,0.00019342,2]
[387336938,1758696640201,-480.0,0.00019342,2]
[387336939,1758696640211,-483.57399427,0.00019342,2]
[387336940,1758696640220,-480.0,0.00019342,2]
[387336941,1758696640233,-480.0,0.00019342,2]
[387336942,1758696640242,-480.0,0.00019342,2]
[387336943,1758696640253,-482.28110472,0.00019342,2]
[387336944,1758696640262,-480.0,0.00019342,2]
[387336945,1758696640272,-493.37270231,0.00019342,2]
[387336946,1758696640282,-480.0,0.00019342,2]
[387336947,1758696640291,-480.0,0.00019342,2]
[387336948,1758696640301,-480.0,0.00019342,2]
[387336949,1758696640311,-480.0,0.00019342,2]
[387336950,1758696640320,-482.01872027,0.00019342,2]
[387336951,1758696640329,-480.0,0.00019342,2]
[387336952,1758696640340,-1876.45,0.00019342,2]
[387336953,1758696640350,-480.0,0.00019342,2]
[387336954,1758696640359,-480.0,0.00019342,2]
[387336955,1758696640369,-480.0,0.00019342,2]
[387336956,1758696640379,-481.33199005,0.00019342,2]
[387336957,1758696640389,-480.0,0.00019342,2]
[387336958,1758696640398,-178.40521894,0.00019342,2]
[387336959,1758696640490,-301.59478106,0.00019342,2]
[387336960,1758696640500,-480.0,0.00019342,2]
[387336961,1758696640510,-480.0,0.00019342,2]
[387336962,1758696640519,-480.0,0.00019342,2]
[387336963,1758696640529,-480.0,0.00019342,2]
[387336964,1758696640538,-311.01177656,0.00019342,2]
[387336965,1758696640548,-480.0,0.00019342,2]
[387336966,1758696640558,-480.0,0.00019342,2]
[387336967,1758696640566,-480.0,0.00019342,2]
[387336968,1758696640576,-480.0,0.00019342,2]
[387336969,1758696640585,-480.0,0.00019342,2]
[387336970,1758696640595,-912.57,0.00019342,2]
[387336971,1758696640605,-505.27,0.00019342,2]
[387336972,1758696640615,-625.69012712,0.00019342,2]
[387336973,1758696640625,-249.06592234,0.00019342,2]
[387336974,1758696640635,-500.0,0.00019342,2]
[387336975,1758696640644,-303.44258913,0.00019342,2]
[387336976,1758696640654,-480.0,0.00019342,2]
[387336977,1758696640663,-480.0,0.00019342,2]
[387336978,1758696640673,-480.0,0.00019342,2]
[387336979,1758696640683,-1061.15,0.00019342,2]
[387336980,1758696640692,-480.0,0.00019342,2]
[387336981,1758696640702,-480.0,0.00019342,2]
[387336982,1758696640711,-480.0,0.00019342,2]
[387336983,1758696640721,-188.89200379,0.00019342,2]
[387336984,1758696640734,-291.10799621,0.00019342,2]
[387336985,1758696640744,-480.0,0.00019342,2]
[387336986,1758696640754,-480.0,0.00019342,2]
[387336987,1758696640763,-480.0,0.00019342,2]
[387336988,1758696640772,-480.0,0.00019342,2]
[387336989,1758696640782,-480.18558104,0.00019342,2]
[387336990,1758696640792,-480.0,0.00019343,2]
[387336991,1758696640801,-480.0,0.00019343,2]
[387336992,1758696640811,-480.0,0.00019343,2]
[387336993,1758696640820,-481.4539951,0.00019343,2]
[387336994,1758696640830,-481.27590948,0.00019343,2]
[387336995,1758696640840,-480.0,0.00019343,2]
[387336996,1758696640849,-481.20255601,0.00019343,2]
[387336997,1758696640859,-480.0,0.00019343,2]
[387336998,1758696640868,-480.0,0.00019343,2]
[387336999,1758696640878,-499.79836557,0.00019343,2]
[387337000,1758696640889,-480.0,0.00019343,2]
[387337001,1758696640899,-480.0,0.00019343,2]
[387337002,1758696640908,-480.0,0.00019343,2]
[387337003,1758696640917,-480.0,0.00019343,2]
[387337004,1758696640927,-480.0,0.00019343,2]
[387337005,1758696640936,-482.55698377,0.00019343,2]
[387337006,1758696640945,-480.0,0.00019343,2]
[387337007,1758696640955,-482.38729818,0.00019343,2]
[387337008,1758696640964,-480.0,0.00019343,2]
[387337009,1758696640973,-480.0,0.00019343,2]
[387337010,1758696640982,-480.0,0.00019343,2]
[387337011,1758696640991,-480.0,0.00019343,2]
[387337012,1758696641001,-481.24176945,0.00019343,2]
[387337013,1758696641010,-480.0,0.00019343,2]
[387337014,1758696641019,-482.32762858,0.00019343,2]
[387337015,1758696641029,-480.0,0.00019343,2]
[387337016,1758696641038,-481.34763429,0.00019343,2]
[387337017,1758696641050,-481.41174924,0.00019343,2]
[387337018,1758696641059,-480.0,0.00019343,2]
[387337019,1758696641069,-480.0,0.00019343,2]
[387337020,1758696641079,-307.79428059,0.00019343,2]
[387337021,1758696641089,-481.30324616,0.00019343,2]
[387337022,1758696641098,-480.0,0.00019343,2]
[387337023,1758696641108,-528.27698255,0.00019343,2]
[387337024,1758696641118,-480.0,0.00019343,2]
[387337025,1758696641128,-481.88235915,0.00019343,2]
[387337026,1758696641139,-480.0,0.00019343,2]
[387337027,1758696641149,-480.0,0.00019343,2]
[387337028,1758696641162,-604.80489222,0.00019343,2]
[387337030,1758696641173,-480.0,0.00019343,2]
[387337032,1758696641183,-175.85367564,0.00019343,2]
[387337034,1758696641193,-437.5436454,0.00019343,2]
[387337036,1758696641205,-480.0,0.00019343,2]
[387337038,1758696641215,-483.53601391,0.00019343,2]
[387337040,1758696641227,-480.0,0.00019343,2]
[387337042,1758696641236,-480.0,0.00019343,2]
[387337044,1758696641246,-480.0,0.00019343,2]
[387337046,1758696641257,-480.0,0.00019343,2]
[387337048,1758696641266,-157.5154215,0.00019343,2]
[387337050,1758696641276,-480.0,0.00019343,2]
[387337052,1758696641285,-480.0,0.00019343,2]
[387337054,1758696641295,-480.0,0.00019343,2]
[387337056,1758696641305,-480.0,0.00019343,2]
[387337057,1758696641315,-480.0,0.00019343,2]
[387337059,1758696641324,-480.0,0.00019343,2]
[387337061,1758696641334,-178.89497154,0.00019343,2]
[387337062,1758696641343,-480.0,0.00019343,2]
[387337063,1758696641353,-483.4784309,0.00019343,2]
[387337064,1758696641362,-480.0,0.00019343,2]
[387337065,1758696641372,-480.0,0.00019343,2]
[387337066,1758696641382,-394.69046702,0.00019343,2]
[387337067,1758696641392,-480.0,0.00019343,2]
[387337068,1758696641402,-480.0,0.00019343,2]
[387337070,1758696641412,-480.0,0.00019343,2]
[387337072,1758696641421,-481.91046568,0.00019343,2]
[387337074,1758696641431,-480.0,0.00019343,2]
[387337075,1758696641440,-480.0,0.00019343,2]
[387337077,1758696641449,-480.0,0.00019343,2]
[387337079,1758696641458,-480.0,0.00019343,2]
[387337081,1758696641467,-480.0,0.00019343,2]
[387337083,1758696641477,-480.0,0.00019343,2]
[387337085,1758696641486,-483.46880554,0.00019343,2]
[387337087,1758696641495,-480.0,0.00019343,2]
[387337089,1758696641504,-481.31608615,0.00019343,2]
[387337091,1758696641513,-480.0,0.00019343,2]
[387337093,1758696641523,-481.02486374,0.00019343,2]
[387337095,1758696641533,-480.0,0.00019343,2]
[387337097,1758696641542,-480.0,0.00019343,2]
[387337099,1758696641551,-481.97136791,0.00019343,2]
[387337101,1758696641560,-585.93,0.00019343,2]
[387337102,1758696641569,-480.0,0.00019343,2]
[387337104,1758696641579,-480.0,0.00019343,2]
[387337106,1758696641588,-480.0,0.00019343,2]
[387337108,1758696641597,-480.0,0.00019343,2]
[387337110,1758696641606,-480.0,0.00019343,2]
[387337111,1758696641615,-480.0,0.00019343,2]
[387337112,1758696641625,-481.38585255,0.00019343,2]
[387337113,1758696641636,-482.68015481,0.00019343,2]
[387337114,1758696641646,-482.16205145,0.00019343,2]
[387337115,1758696641655,-480.0,0.00019343,2]
[387337116,1758696641665,-480.0,0.00019343,2]
[387337117,1758696641675,-480.0,0.00019343,2]
[387337118,1758696641684,-480.6862917,0.00019343,2]
[387337119,1758696641694,-480.0,0.00019343,2]
[387337120,1758696641703,-170.27336706,0.00019343,2]
[387337121,1758696641712,-480.0,0.00019343,2]
[387337122,1758696641721,-480.0,0.00019343,2]
[387337123,1758696641731,-480.0,0.00019343,2]
[387337124,1758696641740,-480.0,0.00019343,2]
[387337125,1758696641750,-480.0,0.00019343,2]
[387337126,1758696641759,-480.0,0.00019343,2]
[387337128,1758696641769,-480.0,0.00019343,2]
[387337130,1758696641779,-480.0,0.00019343,2]
[387337131,1758696641788,-492.13407604,0.00019343,2]
[387337133,1758696641798,-467.86253488,0.00019343,2]
[387337134,1758696641807,-480.0,0.00019343,2]
[387337135,1758696641817,-480.0,0.00019343,2]
[387337136,1758696641828,-373.26195518,0.00019343,2]
[387337137,1758696641837,-480.0,0.00019343,2]
[387337138,1758696641847,-480.0,0.00019343,2]
[387337139,1758696641856,-480.0,0.00019343,2]
[387337140,1758696641866,-500.0,0.00019343,2]
[387337141,1758696641876,-500.0,0.00019343,2]
[387337142,1758696641888,-477.26062044,0.00019343,2]
[387337143,1758696641897,-480.0,0.00019343,2]
[387337144,1758696641908,-500.0,0.00019343,2]
[387337145,1758696641923,-439.51047299,0.00019343,2]
[387337146,1758696641933,-522.73,0.00019343,2]
[387337147,1758696641947,-480.0,0.00019343,2]
[387337148,1758696641957,-262.06185857,0.00019343,2]
[387337149,1758696641967,-480.0,0.00019343,2]
[387337150,1758696641977,-480.0,0.00019343,2]
[387337151,1758696641987,-480.0,0.00019343,2]
[387337152,1758696641997,-480.0,0.00019343,2]
[387337153,1758696642007,-480.0,0.00019343,2]
[387337154,1758696642016,-480.0,0.00019343,2]
[387337155,1758696642026,-480.0,0.00019343,2]
[387337156,1758696642036,-480.0,0.00019343,2]
[387337157,1758696642045,-483.23683341,0.00019343,2]
[387337158,1758696642055,-482.70927707,0.00019343,2]
[387337159,1758696642064,-480.0,0.00019343,2]
[387337160,1758696642074,-370.52478656,0.00019343,2]
[387337161,1758696642084,-480.0,0.00019343,2]
[387337162,1758696642094,-480.0,0.00019343,2]
[387337163,1758696642103,-480.0,0.00019343,2]
[387337164,1758696642113,-480.0,0.00019343,2]
[387337165,1758696642123,-480.0,0.00019343,2]
[387337166,1758696642133,-3074.73,0.00019343,2]
[387337167,1758696642142,-480.0,0.00019343,2]
[387337168,1758696642152,-480.0,0.00019343,2]
[387337169,1758696642162,-480.0,0.00019343,2]
[387337170,1758696642172,-480.0,0.00019343,2]
[387337171,1758696642181,-481.41222381,0.00019343,2]
[387337172,1758696642191,-480.0,0.00019343,2]
[387337173,1758696642202,-480.0,0.00019343,2]
[387337174,1758696642214,-601.73,0.00019343,2]
[387337175,1758696642223,-480.0,0.00019343,2]
[387337176,1758696642233,-480.0,0.00019343,2]
[387337177,1758696642242,-480.0,0.00019343,2]
[387337178,1758696642253,-482.65202307,0.00019343,2]
[387337179,1758696642262,-480.0,0.00019343,2]
[387337180,1758696642272,-480.0,0.00019343,2]
[387337181,1758696642281,-480.0,0.00019343,2]
[387337182,1758696642290,-349.92387686,0.00019343,2]
[387337183,1758696642300,-480.0,0.00019343,2]
[387337184,1758696642311,-500.0,0.00019343,2]
[387337185,1758696642320,-500.0,0.00019343,2]
[387337186,1758696642330,-500.0,0.00019343,2]
[387337187,1758696642340,-480.0,0.00019343,2]
[387337188,1758696642349,-422.63190867,0.00019343,2]
[387337189,1758696642359,-480.0,0.00019343,2]
[387337190,1758696642369,-244.70798791,0.00019343,2]
[387337191,1758696642378,-480.0,0.00019343,2]
[387337193,1758696642388,-480.0,0.00019343,2]
[387337194,1758696642398,-485.22817986,0.00019343,2]
[387337196,1758696642408,-480.0,0.00019343,2]
[387337198,1758696642417,-480.0,0.00019343,2]
[387337200,1758696642426,-480.0,0.00019343,2]
[387337202,1758696642436,-480.0,0.00019343,2]
[387337212,1758696642445,-480.0,0.00019344,2]
[387337214,1758696642532,-480.0,0.00019344,2]
[387337216,1758696642545,-480.0,0.00019344,2]
[387337218,1758696642555,-490.79503925,0.00019344,2]
[387337220,1758696642564,-480.0,0.00019344,2]
[387337222,1758696642573,-483.51540591,0.00019344,2]
[387337223,1758696642582,-480.0,0.00019344,2]
[387337225,1758696642591,-487.98875917,0.00019344,2]
[387337227,1758696642601,-480.0,0.00019344,2]
[387337228,1758696642610,-496.58980733,0.00019344,2]
[387337230,1758696642622,-319.62268277,0.00019344,2]
[387337232,1758696642633,-485.03246819,0.00019344,2]
[387337234,1758696642642,-481.50810013,0.00019344,2]
[387337236,1758696642651,-480.0,0.00019344,2]
[387337238,1758696642660,-480.0,0.00019344,2]
[387337240,1758696642669,-480.0,0.00019344,2]
[387337241,1758696642679,-480.0,0.00019344,2]
[387337243,1758696642688,-480.0,0.00019344,2]
[387337245,1758696642698,-480.0,0.00019344,2]
[387337247,1758696642707,-480.0,0.00019344,2]
[387337249,1758696642717,-480.0,0.00019344,2]
[387337251,1758696642726,-482.51812744,0.00019344,2]
[387337253,1758696642736,-481.89742107,0.00019344,2]
[387337255,1758696642745,-481.02977446,0.00019344,2]
[387337257,1758696642754,-480.0,0.00019344,2]
[387337259,1758696642764,-480.0,0.00019344,2]
[387337261,1758696642773,-480.0,0.00019344,2]
[387337263,1758696642783,-480.0,0.00019344,2]
[387337264,1758696642792,-480.0,0.00019344,2]
[387337265,1758696642801,-480.0,0.00019344,2]
[387337266,1758696642810,-480.0,0.00019344,2]
[387337267,1758696642819,-480.0,0.00019344,2]
[387337268,1758696642828,-480.0,0.00019344,2]